[Event "Mistrovství Čech mládeže 2023 - HD14"]
[Site "Harrachov, Czech Republic"]
[Date "2023.10.22"]
[Round "2.14"]
[White "Čech, Nicolas"]
[Black "Slívová, Linda"]
[Result "0-1"]
[TimeControl "90m + 30s"]
[WhiteElo "1399"]
[BlackElo "1624"]

1. e4 {[%clk 01:30:58]} {[%emt 00:00:01]} d5 {[%clk 01:30:52]} {[%emt
00:00:08]} 2. exd5 {[%clk 01:31:27]} {[%emt 00:00:02]} Qxd5 {[%clk 01:31:10]}
{[%emt 00:00:12]} 3. Nc3 {[%clk 01:31:50]} Qd6 {[%clk 01:31:32]} {[%emt
00:00:14]} 4. Nf3 {[%clk 01:32:05]} Nf6 {[%clk 01:31:42]} {[%emt 00:00:34]} 5.
d4 {[%clk 01:32:24]} c6 {[%emt 00:01:11]} 6. Be3 {[%clk 01:32:28]} {[%emt
00:00:10]} Bg4 {[%clk 01:30:05]} {[%emt 00:01:55]} 7. h3 {[%clk 01:29:52]}
{[%emt 00:03:06]} Bxf3 {[%clk 01:28:11]} {[%emt 00:02:24]} 8. Qxf3 {[%clk
01:30:09]} {[%emt 00:00:13]} e6 {[%clk 01:26:27]} {[%emt 00:02:14]} 9. Bd3
{[%clk 01:27:23]} {[%emt 00:03:16]} Be7 {[%clk 01:21:26]} {[%emt 00:05:31]} 10.
O-O {[%clk 01:26:09]} {[%emt 00:01:43]} O-O {[%clk 01:20:17]} {[%emt 00:01:39]}
11. Ne4 {[%clk 01:21:33]} {[%emt 00:05:06]} Qd8 {[%clk 01:10:46]} {[%emt
00:10:01]} 12. Nxf6+ {[%clk 01:20:58]} {[%emt 00:01:05]} Bxf6 {[%clk 01:11:07]}
{[%emt 00:00:09]} 13. Qe4 {[%clk 01:20:03]} {[%emt 00:01:25]} g6 {[%clk
01:11:04]} {[%emt 00:00:33]} 14. c3 {[%clk 01:15:45]} {[%emt 00:04:48]} Bg7
{[%clk 01:10:18]} {[%emt 00:01:15]} 15. Qg4 {[%clk 01:06:37]} {[%emt 00:09:37]}
Nd7 {[%clk 01:06:54]} {[%emt 00:03:56]} 16. Bg5 {[%clk 00:49:58]} {[%emt
00:17:09]} Qb6 {[%clk 01:06:06]} {[%emt 00:01:18]} 17. Rab1 {[%emt 00:04:36]}
Qa5 {[%clk 00:57:06]} {[%emt 00:06:20]} 18. a3 {[%emt 00:02:27]} Rfe8 {[%clk
00:54:45]} {[%emt 00:01:32]} 19. f4 {[%clk 00:43:20]} {[%emt 00:05:34]} c5
{[%clk 00:46:16]} {[%emt 00:08:58]} 20. f5 {[%clk 00:31:23]} {[%emt 00:12:27]}
exf5 {[%clk 00:41:37]} {[%emt 00:05:10]} 21. Bxf5 {[%clk 00:26:02]} {[%emt
00:05:50]} Nf8 {[%clk 00:38:46]} {[%emt 00:03:21]} 22. Bd7 {[%clk 00:23:17]}
{[%emt 00:03:16]} f5 {[%clk 00:26:46]} {[%emt 00:12:30]} 23. Bxf5 {[%clk
00:23:33]} {[%emt 00:00:13]} gxf5 {[%clk 00:27:02]} {[%emt 00:00:14]} 24. Rxf5
{[%clk 00:20:31]} {[%emt 00:03:32]} Qc7 {[%clk 00:18:47]} {[%emt 00:08:45]} 25.
Rxc5 {[%clk 00:15:03]} {[%emt 00:05:58]} Qd6 {[%clk 00:17:30]} {[%emt
00:01:47]} 26. Bf4 {[%clk 00:14:04]} {[%emt 00:01:30]} Qe6 {[%clk 00:16:59]}
{[%emt 00:01:01]} 27. Qxe6+ {[%clk 00:13:36]} {[%emt 00:00:57]} Nxe6 {[%clk
00:17:24]} {[%emt 00:00:05]} 28. Rf5 {[%clk 00:13:18]} {[%emt 00:00:48]} Nxf4
{[%clk 00:17:09]} {[%emt 00:00:45]} 29. Rxf4 {[%clk 00:13:36]} {[%emt
00:00:11]} Re2 {[%clk 00:16:54]} {[%emt 00:00:46]} 30. Rf2 {[%clk 00:13:38]}
{[%emt 00:00:28]} Rae8 {[%clk 00:16:40]} {[%emt 00:00:44]} 31. Rbf1 {[%clk
00:13:33]} {[%emt 00:00:34]} Rxf2 {[%clk 00:13:52]} {[%emt 00:03:18]} 32. Rxf2
{[%clk 00:13:24]} {[%emt 00:00:39]} Bh6 {[%clk 00:12:27]} {[%emt 00:01:56]} 33.
Kf1 {[%clk 00:12:45]} {[%emt 00:01:09]} Rf8 {[%clk 00:12:32]} {[%emt 00:00:25]}
34. d5 {[%clk 00:11:49]} {[%emt 00:01:26]} Rxf2+ {[%clk 00:11:12]} {[%emt
00:01:50]} 35. Kxf2 {[%clk 00:12:14]} {[%emt 00:00:04]} Bc1 {[%clk 00:10:36]}
{[%emt 00:01:07]} 36. b4 {[%clk 00:11:15]} {[%emt 00:01:29]} Kf7 {[%clk
00:06:36]} {[%emt 00:04:29]} 37. b5 {[%clk 00:11:06]} {[%emt 00:00:39]} Bxa3
{[%clk 00:06:24]} {[%emt 00:00:42]} 38. Kf3 {[%clk 00:10:56]} Ke7 {[%clk
00:05:40]} {[%emt 00:01:55]} 39. Ke4 {[%clk 00:11:01]} Kd6 {[%clk 00:05:40]} 40.
Kd4 {[%clk 00:11:01]} a6 {[%clk 00:05:40]} 41. bxa6 {[%clk 00:10:49]} {[%emt
00:04:42]} bxa6 {[%clk 00:04:00]} {[%emt 00:00:04]} 42. g4 {[%clk 00:10:42]}
{[%emt 00:00:37]} Bc5+ {[%clk 00:02:57]} {[%emt 00:01:33]} 43. Kc4 {[%clk
00:10:32]} {[%emt 00:00:40]} Bb6 {[%clk 00:02:34]} {[%emt 00:00:53]} 44. h4
{[%clk 00:10:13]} {[%emt 00:00:49]} Ke5 {[%clk 00:01:23]} {[%emt 00:01:42]} 45.
g5 {[%clk 00:09:36]} {[%emt 00:01:06]} Be3 {[%clk 00:00:59]} {[%emt 00:00:54]}
46. Kd3 {[%clk 00:09:38]} {[%emt 00:00:28]} Bf2 {[%clk 00:00:48]} {[%emt
00:00:41]} 47. h5 {[%clk 00:09:59]} {[%emt 00:00:09]} Kf5 {[%clk 00:00:33]}
{[%emt 00:00:45]} 48. g6 {[%clk 00:09:59]} {[%emt 00:00:30]} hxg6 {[%clk
00:00:51]} {[%emt 00:00:12]} 49. hxg6 {[%clk 00:10:26]} {[%emt 00:00:02]} Kxg6
{[%clk 00:01:13]} {[%emt 00:00:09]} 50. Kc4 {[%clk 00:10:46]} {[%emt 00:00:10]}
Kf6 {[%clk 00:01:19]} {[%emt 00:00:24]} 51. Kb4 {[%clk 00:10:46]} {[%emt
00:00:30]} Bb6 {[%clk 00:01:41]} {[%emt 00:00:07]} 52. c4 {[%clk 00:11:02]}
{[%emt 00:00:15]} Ke5 {[%clk 00:00:51]} {[%emt 00:01:20]} 53. c5 {[%clk
00:11:19]} {[%emt 00:00:13]} Bd8 {[%clk 00:01:16]} {[%emt 00:00:05]} 54. d6
{[%clk 00:10:45]} {[%emt 00:01:03]} Kd5 {[%clk 00:01:29]} {[%emt 00:00:17]} 55.
d7 {[%clk 00:09:20]} {[%emt 00:01:56]} Kc6 {[%clk 00:01:47]} {[%emt 00:00:13]}
56. Kc4 {[%clk 00:09:24]} {[%emt 00:00:26]} a5 {[%clk 00:01:09]} {[%emt
00:01:08]} 57. Kd4 {[%clk 00:09:12]} {[%emt 00:00:41]} Kxd7 {[%clk 00:01:14]}
{[%emt 00:00:26]} 58. Kd5 {[%clk 00:09:24]} {[%emt 00:00:18]} Kc7 {[%clk
00:01:07]} {[%emt 00:00:37]} 59. Kc4 {[%clk 00:08:45]} {[%emt 00:01:09]} Kc6
{[%clk 00:01:32]} {[%emt 00:00:05]} 60. Kd4 {[%clk 00:08:56]} {[%emt 00:00:19]}
Be7 {[%clk 00:01:40]} {[%emt 00:00:22]} 61. Kc4 {[%clk 00:08:09]} {[%emt
00:01:17]} Bxc5 {[%clk 00:02:02]} {[%emt 00:00:08]} 62. Kb3 {[%clk 00:08:26]}
{[%emt 00:00:13]} Kb5 {[%clk 00:02:22]} {[%emt 00:00:11]} 63. Ka2 {[%clk
00:08:42]} {[%emt 00:00:13]} Kb4 {[%clk 00:02:38]} {[%emt 00:00:14]} 64. Kb2
{[%clk 00:08:55]} {[%emt 00:00:17]} Bd4+ {[%clk 00:02:39]} {[%emt 00:00:29]} 65.
Ka2 {[%clk 00:09:12]} {[%emt 00:00:13]} a4 {[%clk 00:02:55]} {[%emt 00:00:14]}
66. Kb1 {[%clk 00:09:25]} {[%emt 00:00:17]} Kb3 {[%clk 00:03:14]} {[%emt
00:00:12]} 67. Kc1 {[%clk 00:09:41]} {[%emt 00:00:15]} a3 {[%clk 00:03:29]}
{[%emt 00:00:14]} 0-1

[Event "Mistrovství Čech mládeže 2023 - HD14"]
[Site "Harrachov, Czech Republic"]
[Date "2023.10.22"]
[Round "2.15"]
[White "Stefaniv, Vladislav"]
[Black "Ocelák, Lukáš"]
[Result "1-0"]
[TimeControl "90m + 30s"]
[WhiteElo "1566"]
[BlackElo "1342"]

1. d4 {[%clk 01:30:57]} {[%emt 00:00:03]} Nf6 {[%clk 01:30:50]} {[%emt
00:00:11]} 2. c4 {[%clk 01:31:22]} {[%emt 00:00:05]} e6 {[%clk 01:31:04]}
{[%emt 00:00:16]} 3. Nf3 {[%clk 01:31:47]} {[%emt 00:00:05]} d5 {[%clk
01:30:20]} {[%emt 00:01:14]} 4. g3 {[%clk 01:32:03]} {[%emt 00:00:14]} dxc4
{[%clk 01:24:31]} {[%emt 00:06:18]} 5. Bg2 {[%clk 01:31:22]} {[%emt 00:01:11]}
Nc6 {[%clk 01:17:12]} {[%emt 00:07:50]} 6. Qa4 {[%clk 01:21:53]} {[%emt
00:09:59]} Bb4+ {[%clk 01:06:35]} {[%emt 00:11:06]} 7. Bd2 {[%clk 01:20:35]}
{[%emt 00:01:49]} Bxd2+ {[%clk 00:58:43]} {[%emt 00:08:23]} 8. Nfxd2 {[%clk
01:03:35]} {[%emt 00:17:29]} Bd7 {[%clk 00:53:48]} {[%emt 00:05:25]} 9. Qxc4
{[%clk 01:03:21]} {[%emt 00:00:44]} O-O {[%clk 00:51:19]} {[%emt 00:02:59]} 10.
O-O {[%clk 01:01:58]} {[%emt 00:01:53]} Qe7 {[%clk 00:43:28]} {[%emt 00:08:21]}
11. Nf3 {[%clk 01:00:16]} {[%emt 00:02:12]} Rfe8 {[%clk 00:38:51]} {[%emt
00:05:07]} 12. Nc3 {[%clk 00:55:03]} {[%emt 00:05:43]} Rac8 {[%clk 00:30:28]}
{[%emt 00:08:53]} 13. Ne5 {[%clk 00:47:51]} {[%emt 00:07:42]} Nxe5 {[%clk
00:28:23]} {[%emt 00:02:35]} 14. dxe5 {[%clk 00:48:13]} {[%emt 00:00:07]} Nd5
{[%clk 00:25:49]} {[%emt 00:03:04]} 15. Rfd1 {[%clk 00:38:42]} {[%emt
00:10:02]} a6 {[%clk 00:13:24]} {[%emt 00:12:56]} 16. Nxd5 {[%clk 00:33:46]}
{[%emt 00:05:26]} exd5 {[%clk 00:13:25]} {[%emt 00:00:28]} 17. Bxd5 {[%clk
00:32:51]} {[%emt 00:01:25]} Bb5 {[%clk 00:11:44]} {[%emt 00:02:12]} 18. Qe4
{[%clk 00:27:37]} {[%emt 00:05:42]} c6 {[%clk 00:07:40]} {[%emt 00:04:35]} 19.
Bb3 {[%clk 00:26:27]} {[%emt 00:01:38]} Qxe5 {[%clk 00:06:35]} {[%emt
00:01:36]} 20. Qxe5 {[%clk 00:25:42]} {[%emt 00:01:16]} Rxe5 {[%clk 00:07:00]}
{[%emt 00:00:04]} 21. Rd7 {[%clk 00:24:09]} {[%emt 00:02:01]} Rf5 {[%clk
00:05:14]} {[%emt 00:02:18]} 22. Rad1 {[%clk 00:21:12]} {[%emt 00:03:26]} g6
{[%clk 00:04:45]} {[%emt 00:01:00]} 23. e4 {[%clk 00:20:15]} {[%emt 00:01:27]}
Rf6 {[%clk 00:04:21]} {[%emt 00:00:55]} 24. e5 {[%clk 00:19:20]} {[%emt
00:01:25]} Rf5 {[%clk 00:04:25]} {[%emt 00:00:25]} 25. e6 {[%clk 00:17:50]}
{[%emt 00:02:01]} Rf8 {[%clk 00:04:03]} {[%emt 00:00:51]} 26. e7 {[%clk
00:12:57]} {[%emt 00:05:23]} Re8 {[%clk 00:04:08]} {[%emt 00:00:25]} 27. Rd8
{[%clk 00:12:51]} {[%emt 00:00:36]} c5 {[%clk 00:03:50]} {[%emt 00:00:49]} 28.
Rxe8+ {[%clk 00:13:12]} {[%emt 00:00:08]} Bxe8 {[%clk 00:04:17]} {[%emt
00:00:04]} 29. Rd8 {[%clk 00:13:29]} {[%emt 00:00:12]} Re5 {[%clk 00:04:16]}
{[%emt 00:00:31]} 30. Rxe8+ {[%clk 00:13:32]} {[%emt 00:00:27]} Kg7 {[%clk
00:04:40]} {[%emt 00:00:06]} 31. a4 {[%clk 00:12:41]} {[%emt 00:01:21]} b5
{[%clk 00:04:57]} {[%emt 00:00:14]} 32. a5 {[%clk 00:11:33]} {[%emt 00:01:32]}
c4 {[%clk 00:05:21]} {[%emt 00:00:12]} 33. Bd1 {[%clk 00:08:18]} {[%emt
00:03:42]} Kf6 {[%clk 00:05:38]} {[%emt 00:00:16]} 34. Kf1 {[%clk 00:07:24]}
{[%emt 00:01:21]} b4 {[%clk 00:05:33]} {[%emt 00:00:37]} 35. Rc8 {[%clk
00:06:34]} {[%emt 00:01:20]} Kxe7 {[%clk 00:05:42]} {[%emt 00:00:22]} 36. Rxc4
{[%clk 00:06:55]} {[%emt 00:00:08]} Rxa5 {[%clk 00:06:03]} {[%emt 00:00:09]} 37.
Rxb4 {[%clk 00:07:09]} {[%emt 00:00:16]} Ra2 {[%clk 00:06:13]} {[%emt
00:00:20]} 38. b3 {[%clk 00:05:20]} {[%emt 00:02:19]} a5 {[%clk 00:06:30]}
{[%emt 00:00:13]} 39. Ra4 {[%clk 00:05:32]} {[%emt 00:00:18]} 1-0

[Event "Mistrovství Čech mládeže 2023 - HD14"]
[Site "Harrachov, Czech Republic"]
[Date "2023.10.23"]
[Round "3.1"]
[White "Váňa, Jan"]
[Black "Ježek, Jakub"]
[Result "1-0"]
[TimeControl "90m + 30s"]
[WhiteElo "1969"]
[BlackElo "1642"]

1. d4 {[%clk 01:30:58]} {[%emt 00:00:02]} d5 {[%clk 01:30:48]} {[%emt
00:00:11]} 2. Nc3 {[%clk 01:31:27]} {[%emt 00:00:02]} e6 {[%clk 01:30:55]}
{[%emt 00:00:23]} 3. e4 {[%clk 01:31:52]} {[%emt 00:00:05]} dxe4 {[%clk
01:30:17]} {[%emt 00:01:07]} 4. Nxe4 {[%clk 01:32:16]} {[%emt 00:00:06]} Nf6
{[%clk 01:28:58]} {[%emt 00:01:50]} 5. Nxf6+ {[%clk 01:31:21]} {[%emt
00:01:24]} Qxf6 {[%clk 01:29:10]} {[%emt 00:00:17]} 6. Nf3 {[%clk 01:31:48]}
{[%emt 00:00:04]} h6 {[%clk 01:28:45]} {[%emt 00:00:55]} 7. Bd3 {[%clk
01:30:16]} {[%emt 00:02:01]} c5 {[%clk 01:25:37]} {[%emt 00:03:38]} 8. Be3
{[%clk 01:22:17]} {[%emt 00:08:29]} Nc6 {[%clk 01:24:03]} {[%emt 00:02:05]} 9.
O-O {[%clk 01:16:15]} {[%emt 00:06:31]} cxd4 {[%clk 01:23:25]} {[%emt
00:01:09]} 10. Nxd4 {[%clk 01:16:13]} {[%emt 00:00:32]} Be7 {[%clk 01:17:29]}
{[%emt 00:06:25]} 11. Nxc6 {[%clk 01:11:12]} {[%emt 00:05:31]} bxc6 {[%clk
01:17:54]} {[%emt 00:00:06]} 12. Be4 {[%clk 01:06:27]} {[%emt 00:05:14]} e5
{[%clk 01:07:51]} {[%emt 00:10:33]} 13. Qf3 {[%clk 01:03:30]} {[%emt 00:03:26]}
Qxf3 {[%clk 01:06:36]} {[%emt 00:01:47]} 14. Bxf3 {[%clk 01:03:35]} {[%emt
00:00:25]} Kd7 {[%clk 00:59:29]} {[%emt 00:07:38]} 15. Rfe1 {[%clk 00:58:04]}
{[%emt 00:06:00]} Kc7 {[%clk 00:57:07]} {[%emt 00:02:52]} 16. Bd2 {[%clk
00:56:03]} {[%emt 00:02:30]} f6 {[%emt 00:09:48]} 17. Ba5+ {[%clk 00:53:00]}
{[%emt 00:00:01]} Kb7 {[%clk 00:51:34]} {[%emt 00:00:16]} 18. Re3 {[%clk
00:50:53]} {[%emt 00:02:37]} Be6 {[%clk 00:49:19]} {[%emt 00:02:44]} 19. Rd1
{[%clk 00:38:14]} {[%emt 00:13:09]} Rac8 {[%clk 00:45:46]} {[%emt 00:04:02]} 20.
Red3 {[%clk 00:30:05]} {[%emt 00:08:41]} Rhg8 {[%clk 00:35:04]} {[%emt
00:11:12]} 21. Rd7+ {[%clk 00:27:21]} {[%emt 00:03:14]} Bxd7 {[%clk 00:35:22]}
{[%emt 00:00:12]} 22. Rxd7+ {[%clk 00:27:43]} {[%emt 00:00:08]} Ka6 {[%clk
00:35:42]} {[%emt 00:00:10]} 23. b4 {[%clk 00:28:05]} {[%emt 00:00:07]} Bxb4
{[%clk 00:28:55]} {[%emt 00:07:17]} 24. Bxb4 {[%clk 00:26:38]} {[%emt
00:01:57]} Kb6 {[%clk 00:20:11]} {[%emt 00:09:14]} 25. c4 {[%clk 00:22:31]}
{[%emt 00:04:37]} Rb8 {[%clk 00:12:36]} {[%emt 00:08:04]} 26. Bd6 {[%clk
00:20:10]} {[%emt 00:02:52]} Ra8 {[%clk 00:08:16]} {[%emt 00:04:49]} 27. c5+
{[%clk 00:19:06]} {[%emt 00:01:33]} Kb5 {[%clk 00:07:51]} {[%emt 00:00:55]} 28.
Rb7+ {[%clk 00:18:13]} {[%emt 00:01:23]} Kc4 {[%clk 00:08:16]} {[%emt
00:00:05]} 29. Bxc6 {[%clk 00:18:15]} {[%emt 00:00:28]} Rac8 {[%clk 00:08:11]}
{[%emt 00:00:36]} 30. Bd7 {[%clk 00:18:15]} {[%emt 00:00:29]} 1-0

[Event "Mistrovství Čech mládeže 2023 - HD14"]
[Site "Harrachov, Czech Republic"]
[Date "2023.10.23"]
[Round "3.2"]
[White "Slívová, Linda"]
[Black "Roubal, Matyáš"]
[Result "1/2-1/2"]
[TimeControl "90m + 30s"]
[WhiteElo "1624"]
[BlackElo "1884"]

1. e4 {[%clk 01:30:58]} {[%emt 00:00:01]} c5 {[%clk 01:30:55]} {[%emt
00:00:05]} 2. Nc3 {[%clk 01:31:21]} {[%emt 00:00:07]} a6 {[%clk 01:31:09]}
{[%emt 00:00:16]} 3. g3 {[%clk 01:30:59]} {[%emt 00:00:52]} b5 {[%clk
01:31:35]} {[%emt 00:00:05]} 4. Bg2 {[%clk 01:28:36]} {[%emt 00:02:53]} Bb7
{[%clk 01:32:01]} {[%emt 00:00:04]} 5. f4 {[%clk 01:26:10]} {[%emt 00:02:55]}
Nc6 {[%clk 01:31:35]} {[%emt 00:00:56]} 6. Nf3 {[%clk 01:25:32]} {[%emt
00:01:08]} e6 {[%clk 01:29:10]} {[%emt 00:02:55]} 7. O-O {[%clk 01:22:19]}
{[%emt 00:03:43]} Be7 {[%clk 01:27:45]} {[%emt 00:01:55]} 8. d3 {[%clk
01:20:29]} {[%emt 00:02:20]} d6 {[%clk 01:27:42]} {[%emt 00:00:33]} 9. Be3
{[%clk 01:13:21]} {[%emt 00:07:38]} Nf6 {[%clk 01:27:15]} {[%emt 00:00:57]} 10.
h3 {[%clk 01:05:51]} {[%emt 00:08:00]} d5 {[%clk 01:23:25]} {[%emt 00:04:20]}
11. exd5 {[%clk 01:05:48]} {[%emt 00:00:33]} Nxd5 {[%clk 01:23:13]} {[%emt
00:00:42]} 12. Nxd5 {[%clk 01:05:33]} {[%emt 00:00:45]} exd5 {[%clk 01:23:26]}
{[%emt 00:00:17]} 13. d4 {[%clk 01:04:09]} {[%emt 00:01:54]} Qb6 {[%clk
01:21:55]} {[%emt 00:02:01]} 14. dxc5 {[%clk 00:59:14]} {[%emt 00:05:25]} Bxc5
{[%clk 01:22:20]} {[%emt 00:00:04]} 15. Bxc5 {[%clk 00:59:07]} {[%emt
00:00:37]} Qxc5+ {[%clk 01:22:46]} {[%emt 00:00:04]} 16. Kh2 {[%clk 00:59:22]}
{[%emt 00:00:15]} O-O {[%clk 01:22:55]} {[%emt 00:00:21]} 17. c3 {[%clk
00:52:49]} {[%emt 00:07:04]} Rad8 {[%clk 01:17:45]} {[%emt 00:05:40]} 18. Nd4
{[%clk 00:46:37]} {[%emt 00:06:42]} Nxd4 {[%clk 01:16:56]} {[%emt 00:01:19]} 19.
Qxd4 {[%clk 00:46:58]} {[%emt 00:00:09]} Qxd4 {[%clk 01:16:40]} {[%emt
00:00:47]} 20. cxd4 {[%clk 00:47:21]} {[%emt 00:00:07]} Rd7 {[%clk 01:13:09]}
{[%emt 00:04:01]} 21. Rfe1 {[%clk 00:43:51]} {[%emt 00:04:00]} f6 {[%clk
01:12:00]} {[%emt 00:01:39]} 22. Rac1 {[%clk 00:42:59]} {[%emt 00:01:22]} Kf7
{[%clk 01:11:43]} {[%emt 00:00:46]} 23. Bf3 {[%clk 00:36:58]} {[%emt 00:06:32]}
Re8 {[%clk 01:05:42]} {[%emt 00:06:31]} 24. Rxe8 {[%clk 00:36:07]} {[%emt
00:01:21]} Kxe8 {[%clk 01:06:04]} {[%emt 00:00:08]} 25. Kg2 {[%clk 00:32:17]}
{[%emt 00:04:20]} Kd8 {[%clk 00:57:43]} {[%emt 00:08:50]} 26. Kf2 {[%clk
00:31:22]} {[%emt 00:01:26]} Rc7 {[%clk 00:55:38]} {[%emt 00:02:35]} 27. Rc5
{[%clk 00:30:24]} {[%emt 00:01:27]} Kd7 {[%clk 00:54:51]} {[%emt 00:01:17]} 28.
Rxc7+ {[%clk 00:29:53]} {[%emt 00:01:01]} Kxc7 {[%clk 00:55:16]} {[%emt
00:00:06]} 29. Ke3 {[%clk 00:29:46]} {[%emt 00:00:36]} Kd6 {[%clk 00:55:40]}
{[%emt 00:00:06]} 30. b4 {[%clk 00:26:38]} {[%emt 00:03:38]} Bc6 {[%clk
00:55:42]} {[%emt 00:00:28]} 31. g4 {[%clk 00:23:28]} {[%emt 00:03:41]} g5
{[%clk 00:55:33]} {[%emt 00:00:39]} 1/2-1/2

[Event "Mistrovství Čech mládeže 2023 - HD14"]
[Site "Harrachov, Czech Republic"]
[Date "2023.10.23"]
[Round "3.3"]
[White "Migalko, Dmitriy"]
[Black "Jakubše, Tamae Severína"]
[Result "1-0"]
[TimeControl "90m + 30s"]
[WhiteElo "1842"]
[BlackElo "1627"]

1. d4 {[%clk 01:30:54]} {[%emt 00:00:05]} Nf6 {[%clk 01:30:51]} {[%emt
00:00:10]} 2. c4 {[%clk 01:31:11]} {[%emt 00:00:13]} g6 {[%clk 01:31:06]}
{[%emt 00:00:15]} 3. Nc3 {[%clk 01:31:15]} {[%emt 00:00:25]} d5 {[%clk
01:31:27]} {[%emt 00:00:09]} 4. cxd5 {[%clk 01:31:20]} {[%emt 00:00:25]} Nxd5
{[%clk 01:31:45]} {[%emt 00:00:12]} 5. Bd2 {[%clk 01:31:34]} {[%emt 00:00:15]}
Bg7 {[%clk 01:31:13]} {[%emt 00:01:03]} 6. e4 {[%clk 01:31:38]} {[%emt
00:00:26]} Nxc3 {[%clk 01:30:59]} {[%emt 00:00:45]} 7. Bxc3 {[%clk 01:31:58]}
{[%emt 00:00:09]} O-O {[%clk 01:30:24]} {[%emt 00:01:05]} 8. Qd2 {[%clk
01:25:38]} {[%emt 00:06:50]} b6 {[%clk 01:23:57]} {[%emt 00:06:57]} 9. Bc4
{[%clk 01:15:54]} {[%emt 00:10:13]} Bb7 {[%clk 01:21:06]} {[%emt 00:03:22]} 10.
f3 {[%clk 01:15:02]} {[%emt 00:01:22]} Nd7 {[%clk 01:16:52]} {[%emt 00:04:44]}
11. Ne2 {[%clk 01:08:25]} {[%emt 00:07:07]} e6 {[%clk 01:12:40]} {[%emt
00:04:43]} 12. O-O {[%clk 01:04:00]} {[%emt 00:04:54]} c5 {[%clk 01:08:32]}
{[%emt 00:04:38]} 13. Rfd1 {[%clk 00:58:59]} {[%emt 00:05:31]} Rc8 {[%clk
00:58:08]} {[%emt 00:10:55]} 14. d5 {[%clk 00:56:49]} {[%emt 00:02:40]} exd5
{[%clk 00:53:34]} {[%emt 00:05:04]} 15. Bxd5 {[%clk 00:55:20]} {[%emt
00:01:59]} Bxd5 {[%clk 00:49:04]} {[%emt 00:05:01]} 16. Qxd5 {[%clk 00:54:20]}
{[%emt 00:01:30]} Nf6 {[%clk 00:45:55]} {[%emt 00:03:39]} 17. Qd6 {[%clk
00:50:39]} {[%emt 00:04:10]} Qxd6 {[%clk 00:40:15]} {[%emt 00:06:11]} 18. Rxd6
{[%clk 00:50:59]} {[%emt 00:00:09]} Ne8 {[%clk 00:39:05]} {[%emt 00:01:40]} 19.
Rd7 {[%clk 00:50:08]} {[%emt 00:01:21]} Nc7 {[%clk 00:38:28]} {[%emt 00:01:07]}
20. Rad1 {[%clk 00:46:05]} {[%emt 00:04:32]} Bxc3 {[%clk 00:31:42]} {[%emt
00:07:18]} 21. Nxc3 {[%clk 00:46:18]} {[%emt 00:00:16]} f6 {[%clk 00:31:07]}
{[%emt 00:01:06]} 22. Nd5 {[%clk 00:41:12]} {[%emt 00:05:36]} Nxd5 {[%clk
00:28:18]} {[%emt 00:03:19]} 23. R1xd5 {[%clk 00:40:38]} {[%emt 00:01:04]} Ra8
{[%clk 00:27:11]} {[%emt 00:01:37]} 24. Rb7 {[%clk 00:38:59]} {[%emt 00:02:09]}
Rf7 {[%clk 00:26:21]} {[%emt 00:01:20]} 25. Rxf7 {[%clk 00:38:36]} {[%emt
00:00:54]} Kxf7 {[%clk 00:26:28]} {[%emt 00:00:23]} 26. Rd7+ {[%clk 00:38:54]}
{[%emt 00:00:12]} Ke6 {[%clk 00:22:23]} {[%emt 00:04:35]} 27. Rxh7 {[%clk
00:27:04]} {[%emt 00:12:20]} Rd8 {[%clk 00:21:26]} {[%emt 00:01:27]} 28. Rxa7
{[%clk 00:26:51]} {[%emt 00:00:43]} Rd1+ {[%clk 00:21:34]} {[%emt 00:00:22]} 29.
Kf2 {[%clk 00:27:17]} {[%emt 00:00:04]} Rd2+ {[%clk 00:21:41]} {[%emt
00:00:23]} 30. Ke3 {[%clk 00:25:43]} {[%emt 00:02:05]} Rxg2 {[%clk 00:21:27]}
{[%emt 00:00:43]} 31. b3 {[%clk 00:25:27]} {[%emt 00:00:46]} Rxh2 {[%clk
00:19:49]} {[%emt 00:02:08]} 32. Ra6 {[%clk 00:25:26]} {[%emt 00:00:32]} Ke7
{[%clk 00:19:23]} {[%emt 00:00:56]} 33. a4 {[%clk 00:25:33]} {[%emt 00:00:23]}
Rb2 {[%clk 00:16:44]} {[%emt 00:03:09]} 34. Rxb6 {[%clk 00:25:51]} {[%emt
00:00:13]} c4 {[%clk 00:16:38]} {[%emt 00:00:36]} 35. b4 {[%clk 00:25:22]}
{[%emt 00:00:59]} Rb3+ {[%clk 00:12:37]} {[%emt 00:04:30]} 36. Kd4 {[%clk
00:24:52]} {[%emt 00:01:00]} Rxf3 {[%clk 00:12:13]} {[%emt 00:00:54]} 37. Kxc4
{[%clk 00:25:04]} {[%emt 00:00:18]} g5 {[%clk 00:11:30]} {[%emt 00:01:13]} 38.
a5 {[%clk 00:23:53]} {[%emt 00:01:41]} g4 {[%clk 00:10:37]} {[%emt 00:01:23]}
39. Rb7+ {[%clk 00:23:42]} {[%emt 00:00:42]} Kd6 {[%clk 00:10:40]} {[%emt
00:00:27]} 40. Rg7 {[%clk 00:23:12]} {[%emt 00:00:59]} Rf4 {[%clk 00:10:08]}
{[%emt 00:01:03]} 41. Kb5 {[%clk 00:22:03]} {[%emt 00:01:39]} Rxe4 {[%clk
00:09:33]} {[%emt 00:01:05]} 42. a6 {[%clk 00:22:05]} {[%emt 00:00:28]} Re5+
{[%clk 00:08:21]} {[%emt 00:01:41]} 43. Kb6 {[%clk 00:21:54]} {[%emt 00:00:41]}
Re4 {[%clk 00:05:58]} {[%emt 00:02:53]} 44. b5 {[%clk 00:21:29]} {[%emt
00:00:55]} Ra4 {[%clk 00:04:41]} {[%emt 00:01:46]} 45. a7 {[%clk 00:21:31]}
{[%emt 00:00:28]} f5 {[%clk 00:03:55]} {[%emt 00:01:17]} 46. Kb7 {[%clk
00:21:37]} {[%emt 00:00:24]} f4 {[%clk 00:03:43]} {[%emt 00:00:42]} 47. a8=Q
{[%clk 00:21:27]} {[%emt 00:00:41]} Rxa8 {[%clk 00:03:55]} {[%emt 00:00:17]} 48.
Kxa8 {[%clk 00:21:51]} {[%emt 00:00:05]} 1-0